[Event "ETCC Open 2023"]
[Site "Budva"]
[Date "2023.11.11"]
[Round "1.57"]
[White "Tomic, Aleksandar"]
[Black "Rodshtein, Maxim"]
[Result "0-1"]
[ECO "D28"]
[WhiteElo "2411"]
[BlackElo "2582"]
[Annotator "TA"]
[PlyCount "138"]
[EventDate "2023.11.10"]
[EventType "team-tourn"]
[EventCountry "MNE"]
[SourceTitle "playchess.com"]
[Source "ChessBase"]
[SourceQuality "1"]
[WhiteTeam "Montenegro"]
[BlackTeam "Israel"]
[WhiteTeamCountry "MNE"]
[BlackTeamCountry "ISR"]
[TimeControl "40/5400+30:1800+30"]

{[%evp 21,138,-10,59,62,85,65,64,0,0,0,4,0,0,0,0,0,0,0,0,-10,-6,-63,-64,-106,-112,-172,-158,-144,-114,-156,-90,-162,-127,-134,-140,-170,-77,-79,-79,-113,-112,-320,-156,-145,-164,-221,-227,-836,-79,-557,-558,-518,0,0,0,0,0,0,5,1,9,0,0,0,0,0,0,-108,-114,-111,-115,-116,-116,-124,-100,-116,-120,-129,-121,-118,-115,-90,-70,-97,-160,-102,-105,-162,-173,-12847,-12847,-12850,-12850,-12850,-27999,-27999,-27999,-27999,-27999,-27999,-27999,-27999,-27999,-27999,-27999,-27999,-27999,-27999,-27999,-27999,-27999,-27999,-27999,-27999,-27999,-27999,-27999,-27999,-27999]} 1. d4 {[%emt 0:00:15]} Nf6 {[%emt 0:00:10]} 2. Nf3 {[%emt 0:00:39]} e6 {[%emt 0:00:29]} 3. e3 {[%emt 0:00:54]} d5 {[%emt 0:02:20]} 4. Bd3 {[%emt 0:07:43]} b6 {[%emt 0:01:17]} 5. O-O {[%emt 0:02:41]} Bb7 {[%emt 0:00:59]} 6. c4 {[%emt 0:01:19]} dxc4 {[%emt 0:06:39]} 7. Bxc4 {[%emt 0:00:29]} a6 {[%emt 0:00:24]} 8. Qe2 {[%emt 0:03:56]} c5 {[%emt 0:10:59]} 9. Rd1 {[%emt 0:01:15]} Qc7 {[%emt 0:03:21]} 10. Nc3 {[%emt 0:06:51]} b5 {[%emt 0:03:36]} 11. Bb3 {[%emt 0:02:43]} Nc6 {[%emt 0:14:19]} (11... Nbd7 $11) 12. d5 $14 {[%emt 0:09:44] D28: Queen's Gambit Accepted: Classical main line: 7 Qe2 with early ...Nc6.} exd5 {[%emt 0:01:47]} 13. e4 $1 {[%emt 0:15:05]} (13. Bxd5 b4 14. Na4 Nxd5 15. Rxd5 Nd8 $15) 13... d4 {[%emt 0:03:42]} 14. e5 {[%emt 0:02:14]} (14. Nd5 $14 Qd8 15. Bf4) 14... O-O-O $1 $11 {[%emt 0:00:13] ...Re8 would be deadly.} 15. exf6 {[%emt 0:05:42]} dxc3 {[%emt 0:01:28]} 16. Rxd8+ {[%emt 0:06:14]} Nxd8 {[%emt 0:01:17]} 17. bxc3 {[%emt 0:01:46]} gxf6 {[%emt 0:01:25]} 18. a4 {[%emt 0:03:42] [#]} Qc6 $146 {[%emt 0:19:58]} ({Predecessor:} 18... Bc6 19. axb5 axb5 20. Bc2 Bd6 21. Bf5+ Kb8 22. Be3 Ne6 23. Bh6 Bf4 24. Be4 Bxh6 25. Qxb5+ Bb7 {0-1 Szapiel,H-Makarczyk,K POL-ch10 Katowice 1952 (11)}) 19. axb5 {[%emt 0:02:44]} axb5 {[%emt 0:00:03]} 20. Bc2 {[%emt 0:01:57]} Ne6 {[%emt 0:05:42]} 21. Bf5 {[%emt 0:10:53]} (21. Nh4 $11) 21... Bd6 $15 {[%emt 0:08:16]} 22. Ra5 {[%emt 0:06:47]} Qd5 {[%emt 0:03:38]} 23. Bh3 {[%emt 0:02:40]} (23. Qd3 $17) 23... Rg8 {[%emt 0:02:36]} 24. Kf1 {[%emt 0:01:22]} Bc6 {[%emt 0:04:59]} 25. Ra7 {[%emt 0:01:42]} Bc7 {[%emt 0:01:05]} (25... Kb8 $142 26. Rxf7 Re8) 26. Be3 {[%emt 0:00:51]} (26. Bf4 $17 f5 27. Bxc7 Nxc7 28. c4 (28. Ne5 $2 Re8 $19) 28... bxc4 29. Qe5 Qxe5 30. Nxe5) 26... Kb8 {[%emt 0:01:27]} 27. Ra1 {[%emt 0:00:48]} Rd8 {[%emt 0:01:10]} 28. Ne1 {[%emt 0:01:02]} Ng5 {[%emt 0:00:34]} (28... Bxh2 29. Bg4 $17) (28... Nf4 $19 29. c4 Qe5 30. Bxf4 Qxf4) 29. Bg4 $17 {[%emt 0:00:27]} Ne4 {[%emt 0:00:10]} (29... Bxh2 30. Bxg5 fxg5 31. Qe7 $14) 30. Bf3 {[%emt 0:00:31]} f5 {[%emt 0:00:38]} (30... Bxh2 $6 31. g3 $11) 31. Qb2 $2 {[%emt 0:00:33]} (31. Bxe4 $17 fxe4 32. Rb1) 31... Qc4+ {[%emt 0:00:44]} (31... Bxh2 32. g3 $16) (31... f4 $19 {is more deadly.} 32. Bc1 Qc4+ 33. Be2 Qxc3) 32. Be2 {[%emt 0:00:29]} Qxc3 {[%emt 0:00:06]} 33. Qa2 {[%emt 0:00:10]} (33. Qxc3 $142 Nxc3 34. Bxc5) 33... Nd2+ $19 {[%emt 0:00:52]} ({Inferior is} 33... Bxh2 34. Qa7+ Kc8 35. Rc1 Ng3+ 36. fxg3 Qxe3 37. Qxc5 Qxc5 38. Rxc5 $17) 34. Kg1 $2 {[%emt 0:00:49]} (34. Bxd2 Rxd2 35. Qa7+ Kc8 36. Nf3) 34... Nb3 $2 {[%emt 0:00:27]} (34... Qe5 $19 {[%csl Gc7][%cal Re5h2] has better winning chances.} 35. Qa7+ Kc8 36. Qa6+ Bb7) 35. Qa7+ $2 {[%emt 0:00:30][%mdl 8192]} (35. Rb1 $17 {nothing else works.} Nd2 36. Bxd2 Rxd2 37. Qa6) 35... Kc8 {[%emt 0:00:02]} 36. Rb1 {[%emt 0:00:24]} Nd4 $2 {[%emt 0:01:05]} ({Black should play} 36... Qe5 $1 $19 {[%cal Re5h2]} 37. Qa6+ Bb7) 37. Bxd4 $11 {[%emt 0:00:29]} Rxd4 {[%emt 0:00:02]} 38. Qa6+ {[%emt 0:00:34]} Bb7 {[%emt 0:00:57]} 39. Qxb5 {[%emt 0:00:03]} Rb4 $132 {[%emt 0:00:07][%mdl 2048] Black has counterplay. Really sharp! Active counter play!} 40. Qe8+ {[%emt 0:00:28]} Bd8 {[%emt 0:00:01] A strong pair of Bishops.} 41. Bd3 {[%emt 0:21:19]} (41. Rd1 $5 Rd4 $8 42. Rb1 $11) 41... Rxb1 {[%emt 0:09:30]} 42. Bxf5+ {[%emt 0:01:29]} Kc7 {[%emt 0:00:06]} 43. Bxb1 {[%emt 0:01:12]} Bd5 {[%emt 0:01:13]} 44. Qe3 {[%emt 0:04:48] Against Be6} ({Avoid the trap} 44. Bf5 $2 Be6 45. Nc2 Bxf5 $19) (44. Bxh7 $11 {remains equal.} Be6 45. Nc2) 44... Qxe3 $17 {[%emt 0:01:25]} 45. fxe3 {[%emt 0:00:01][%mdl 4096] Endgame [#] KBB-KBN} h6 {[%emt 0:00:21]} 46. Kf2 {[%emt 0:03:11]} Kd6 {[%emt 0:03:02]} 47. Nf3 {[%emt 0:00:25]} c4 {[%emt 0:01:39][%cal Bc5c4,Bc4c3][%mdl 32]} 48. g4 {[%emt 0:00:48]} Kc5 {[%emt 0:03:55]} 49. h4 {[%emt 0:00:42]} c3 {[%emt 0:08:31]} 50. g5 {[%emt 0:00:57]} hxg5 {[%emt 0:03:14]} 51. hxg5 {[%emt 0:00:02]} Kb4 {[%emt 0:01:00]} 52. g6 $1 {[%emt 0:00:33]} fxg6 {[%emt 0:00:32]} 53. Bxg6 {[%emt 0:00:20]} Kb3 {[%emt 0:00:05]} 54. Nd4+ {[%emt 0:00:42] [#]} (54. Ke2 $17 {is a better defense.}) 54... Kb2 $1 $19 {[%emt 0:00:05]} 55. Nb5 $2 {[%emt 0:01:31]} (55. Bf5) 55... Bh4+ {[%emt 0:00:31]} 56. Kg1 {[%emt 0:00:31]} c2 {[%emt 0:00:08]} 57. Bxc2 {[%emt 0:00:10]} Kxc2 {[%emt 0:00:04]} 58. Nd4+ {[%emt 0:00:49] Black mates.} Kd3 {[%emt 0:00:10]} 59. Nf5 {[%emt 0:00:25]} Bg5 {[%emt 0:00:50]} 60. Kf1 {[%emt 0:00:38]} Ke4 {[%emt 0:01:16]} ({Stronger than} 60... Bxe3 61. Nxe3 Kxe3 $11) 61. Nd4 {[%emt 0:00:31]} Bxe3 {[%emt 0:00:19]} 62. Nc2 {[%emt 0:00:26]} Bc4+ {[%emt 0:00:18]} 63. Ke1 {[%emt 0:00:28]} Bg5 {[%emt 0:00:12]} 64. Nb4 {[%emt 0:00:32]} Be7 {[%emt 0:00:15]} 65. Nc6 {[%emt 0:00:31]} Bd6 {[%emt 0:00:31]} 66. Kd1 {[%emt 0:00:17]} Kd3 {[%emt 0:01:41]} 67. Kc1 {[%emt 0:00:43]} Kc3 {[%emt 0:00:24]} 68. Kd1 {[%emt 0:00:31]} Bd5 {[%emt 0:00:17]} 69. Na7 {[%emt 0:00:31]} Kc4 {[%emt 0:00:21] Weighted Error Value: White=0.53/Black=0.30} 0-1

[Event "ETCC Open 2023"]
[Site "Budva"]
[Date "2023.11.11"]
[Round "1.58"]
[White "Kobo, Ori"]
[Black "Sukovic, Andrej"]
[Result "1-0"]
[ECO "C02"]
[WhiteElo "2556"]
[BlackElo "2382"]
[Annotator "RC"]
[PlyCount "81"]
[EventDate "2023.11.10"]
[EventType "team-tourn"]
[EventCountry "MNE"]
[SourceTitle "playchess.com"]
[Source "ChessBase"]
[SourceQuality "1"]
[WhiteTeam "Israel"]
[BlackTeam "Montenegro"]
[WhiteTeamCountry "ISR"]
[BlackTeamCountry "MNE"]
[TimeControl "40/5400+30:1800+30"]

1. e4 {[%emt 0:00:37]} e6 {[%emt 0:00:06]} 2. d4 {[%emt 0:00:15]} d5 {[%emt 0:00:06]} 3. e5 {[%emt 0:00:26]} c5 {[%emt 0:00:05]} 4. c3 {[%emt 0:00:17]} Nc6 {[%emt 0:00:09]} 5. Nf3 {[%emt 0:00:17]} Bd7 {[%emt 0:00:11]} 6. Be2 {[%emt 0:00:31]} Nge7 {[%emt 0:00:13]} 7. O-O {[%emt 0:00:20]} cxd4 {[%emt 0:05:37]} 8. cxd4 {[%emt 0:00:10]} Nf5 {[%emt 0:00:09]} 9. Nc3 {[%emt 0:00:58]} a6 {[%emt 0:04:21]} 10. Kh1 {[%emt 0:04:42]} Be7 {[%emt 0:21:10]} 11. Bd3 {[%emt 0:02:55]} Nh4 {[%emt 0:24:24]} 12. Nxh4 {[%emt 0:01:01]} Bxh4 {[%emt 0:00:05]} 13. Be3 {[%emt 0:15:42]} h5 {[%emt 0:07:51]} 14. Rc1 {[%emt 0:04:25]} Be7 {[%emt 0:02:26]} 15. a3 {[%emt 0:07:24]} Rc8 {[%emt 0:08:32]} 16. b4 {[%emt 0:14:37]} b5 {[%emt 0:01:11]} 17. Nb1 {[%emt 0:03:47]} a5 {[%emt 0:04:39]} 18. Bxb5 {[%emt 0:02:44]} Nxe5 {[%emt 0:00:07]} 19. Rxc8 {[%emt 0:04:09]} Qxc8 {[%emt 0:00:07]} 20. Bxd7+ {[%emt 0:01:02]} Nxd7 {[%emt 0:00:07]} 21. bxa5 {[%emt 0:00:14]} Qa6 {[%emt 0:01:19]} 22. Bd2 {[%emt 0:10:14]} O-O {[%emt 0:03:07]} 23. Kg1 {[%emt 0:00:28]} Nf6 {[%emt 0:07:34]} 24. Qb3 {[%emt 0:07:37]} Ra8 {[%emt 0:00:52]} 25. Bb4 {[%emt 0:07:34]} Bd8 {[%emt 0:00:20]} 26. Nd2 {[%emt 0:00:15]} Bxa5 {[%emt 0:00:26]} 27. Nf3 {[%emt 0:00:43]} Ne4 {[%emt 0:02:33]} 28. h3 {[%emt 0:01:48]} Bb6 {[%emt 0:03:28]} 29. Rc1 {[%emt 0:01:19]} Qa7 {[%emt 0:00:37]} 30. Rd1 {[%emt 0:05:41]} Rc8 {[%emt 0:01:38]} 31. Be1 {[%emt 0:01:29]} Rc4 {[%emt 0:00:59]} 32. Ne5 {[%emt 0:01:19]} Rxd4 {[%emt 0:00:15]} 33. Rb1 {[%emt 0:00:02]} Qc7 {[%emt 0:01:44]} 34. Nf3 {[%emt 0:00:14]} Bc5 {[%emt 0:00:21]} 35. Nxd4 {[%emt 0:00:31]} Bxd4 {[%emt 0:00:34]} 36. Qb8+ {[%emt 0:00:28]} Qxb8 {[%emt 0:00:14]} 37. Rxb8+ {[%emt 0:00:01]} Kh7 {[%emt 0:00:00]} 38. a4 {[%emt 0:00:25]} Nc5 {[%emt 0:00:12]} 39. a5 {[%emt 0:02:08]} Nd3 {[%emt 0:00:01]} 40. Rb1 {[%emt 0:00:45]} Nc5 {[%emt 0:02:08]} 41. Bd2 {[%emt 0:02:40]} 1-0

[Event "ETCC Open 2023"]
[Site "Budva"]
[Date "2023.11.11"]
[Round "1.59"]
[White "Pecurica, Milos"]
[Black "Nabaty, Tamir"]
[Result "0-1"]
[ECO "D26"]
[WhiteElo "2342"]
[BlackElo "2632"]
[Annotator "TA"]
[PlyCount "84"]
[EventDate "2023.11.10"]
[EventType "team-tourn"]
[EventCountry "MNE"]
[SourceTitle "playchess.com"]
[Source "ChessBase"]
[SourceQuality "1"]
[WhiteTeam "Montenegro"]
[BlackTeam "Israel"]
[WhiteTeamCountry "MNE"]
[BlackTeamCountry "ISR"]
[TimeControl "40/5400+30:1800+30"]

{[%evp 15,84,15,38,22,35,13,5,31,28,23,50,0,0,0,0,0,0,0,0,0,0,-154,-146,-272,-280,-268,-123,-103,-109,-136,-143,-160,-155,-157,-164,-163,-60,-52,-60,-60,-57,-59,-45,-97,-99,-111,-89,-107,-60,-87,-79,-71,-84,-77,-80,-210,-200,-191,-172,-191,-200,-190,-182,-311,-314,-329,-325,-388,-375,-357,-348]} 1. d4 {[%emt 0:00:03]} d5 {[%emt 0:00:06]} 2. c4 {[%emt 0:00:08]} dxc4 {[%emt 0:00:05]} 3. e3 {[%emt 0:00:13]} e6 {[%emt 0:00:29]} 4. Bxc4 {[%emt 0:00:11]} a6 {[%emt 0:00:07]} 5. Nf3 {[%emt 0:00:27]} b5 {[%emt 0:00:11]} 6. Bd3 {[%emt 0:02:49]} Bb7 {[%emt 0:00:23]} 7. a4 {[%emt 0:01:02]} b4 {[%emt 0:00:08]} 8. O-O {[%emt 0:01:57]} Nf6 {[%emt 0:00:15]} 9. Nbd2 {[%emt 0:01:31] D26: Queen's Gambit Accepted: 4 e3 e6 5 Bxc5 c5 sidelines.} c5 {[%emt 0:02:26]} 10. e4 {[%emt 0:09:00]} cxd4 {[%emt 0:05:25]} 11. e5 {[%emt 0:00:08] The position is equal.} Nfd7 {[%emt 0:01:31]} 12. Nc4 {[%emt 0:02:42]} Be7 $5 {[%emt 0:07:04][%mdl 4] [#] Wards off Bg5 A promising side line.} (12... Nc5 {keeps more tension.} 13. Bg5 Bxf3 14. Qxf3 Qd5) 13. Bg5 $146 {[%emt 0:30:19]} ({Predecessor:} 13. Nxd4 Nc5 14. Be2 Nc6 15. Nxc6 Bxc6 16. Bf3 Qxd1 17. Bxc6+ Qd7 18. Bxd7+ Nxd7 19. Be3 {½-½ Saulin,D (2378)-Antonov,A (2112) Moscow-chT 2016 (9.2)}) 13... O-O $1 $11 {[%emt 0:02:06]} (13... Bxg5 $2 14. Nd6+ (14. Nxd4 $2 {too greedy.} Be7 $19) 14... Kf8 15. Nxb7 $18) (13... Nxe5 $2 14. Bxe7 Nxf3+ 15. Qxf3 Qxe7 16. Qxb7 Qxb7 17. Nd6+ Ke7 18. Nxb7 $18) 14. Bxe7 {[%emt 0:02:31]} Qxe7 {[%emt 0:00:03]} 15. Rc1 {[%emt 0:08:14]} Nc6 {[%emt 0:29:08]} 16. Be4 {[%emt 0:03:16]} Nc5 {[%emt 0:13:27]} 17. Bxc6 {[%emt 0:02:36]} Bxc6 {[%emt 0:00:03]} 18. Nd6 $2 {[%emt 0:06:15]} ({White has to play} 18. Nxd4 $11 Bxa4 19. b3) 18... Bxa4 $17 {[%emt 0:05:31]} 19. b3 {[%emt 0:06:57]} (19. Qe2 $17 Nb7 20. Qc4) 19... Nxb3 $19 {[%emt 0:13:50]} 20. Rb1 {[%emt 0:01:23]} Nc5 {[%emt 0:04:07]} (20... a5 $19 {has better winning chances. Strongly threatening ...Nc5.} 21. Rxb3 f6) 21. Qxd4 $17 {[%emt 0:00:11]} Nd7 {[%emt 0:00:24]} 22. Qxb4 {[%emt 0:04:01]} Bc6 {[%emt 0:00:25]} 23. Nd4 {[%emt 0:01:09] [#]} Bd5 {[%emt 0:00:58]} ({Worse is} 23... Nxe5 24. f4 $11) 24. f4 {[%emt 0:00:11] [#]} f6 $1 {[%emt 0:00:29]} 25. exf6 {[%emt 0:07:07]} Rxf6 {[%emt 0:03:44]} (25... Nxf6 $19 {...Ng4 would be deadly.} 26. Rfe1 Nd7) 26. Ne4 $1 $15 {[%emt 0:00:33][%mdl 64] Discovered Attack} Rf7 {[%emt 0:00:47]} 27. Qxe7 {[%emt 0:01:05]} Rxe7 {[%emt 0:00:02]} 28. Nc3 {[%emt 0:00:13]} Nf6 {[%emt 0:04:06]} 29. Rfe1 {[%emt 0:01:04]} (29. Ra1 $15) 29... Rc7 $17 {[%emt 0:01:51]} 30. Nxd5 {[%emt 0:03:22]} exd5 {[%emt 0:00:03]} 31. Ne6 {[%emt 0:00:27]} Rca7 {[%emt 0:00:27]} (31... Re7 $17 32. Nc5 Kf7 33. Rxe7+ Kxe7) 32. Re3 {[%emt 0:01:20]} a5 {[%emt 0:00:21][%cal Ba6a5,Ba5a4][%mdl 32]} 33. Ra3 {[%emt 0:00:21]} a4 {[%emt 0:06:01]} 34. Nc5 {[%emt 0:02:39]} Ra5 {[%emt 0:00:47]} 35. Nb7 {[%emt 0:00:21] This costs White the game.} (35. Nd3 $17) 35... Rb8 $19 {[%emt 0:00:29] Hoping for ...Ra7.} 36. Nxa5 {[%emt 0:00:50]} Rxb1+ {[%emt 0:00:02][%mdl 4096] Endgame KRN-KRN} 37. Kf2 {[%emt 0:00:04]} Rb4 {[%emt 0:01:01]} 38. g3 {[%emt 0:00:29]} Ng4+ {[%emt 0:00:33]} 39. Ke2 {[%emt 0:01:06]} (39. Kg2 {was worth a try.}) 39... Nxh2 {[%emt 0:00:27]} 40. Nc6 {[%emt 0:00:57]} Re4+ {[%emt 0:00:13]} 41. Kd2 {[%emt 0:31:05]} Nf1+ {[%emt 0:30:18]} 42. Kd1 {[%emt 0:00:20]} Ne3+ {[%emt 0:00:36] Weighted Error Value: White=0.33/Black=0.15 (very precise)} 0-1

[Event "ETCC Open 2023"]
[Site "Budva"]
[Date "2023.11.11"]
[Round "1.60"]
[White "Postny, Evgeny"]
[Black "Djurovic, Peko"]
[Result "1-0"]
[ECO "E05"]
[WhiteElo "2577"]
[BlackElo "2344"]
[Annotator "TA"]
[PlyCount "95"]
[EventDate "2023.11.10"]
[EventType "team-tourn"]
[EventCountry "MNE"]
[SourceTitle "playchess.com"]
[Source "ChessBase"]
[SourceQuality "1"]
[WhiteTeam "Israel"]
[BlackTeam "Montenegro"]
[WhiteTeamCountry "ISR"]
[BlackTeamCountry "MNE"]
[TimeControl "40/5400+30:1800+30"]

{[%evp 21,95,14,11,0,15,0,14,16,18,13,7,0,13,0,5,0,90,27,29,24,88,68,69,77,132,122,120,130,150,139,147,144,138,144,144,141,130,131,160,156,166,157,278,151,228,155,149,145,229,200,471,456,855,820,780,743,12834,12835,12837,12838,12838,12839,12839,12838,12838,12838,12839,12839,12838,12839,12837,12837,12837,12838,12837,12838]} 1. d4 {[%emt 0:00:04]} d5 {[%emt 0:00:15]} 2. c4 {[%emt 0:00:08]} e6 {[%emt 0:00:22]} 3. Nf3 {[%emt 0:00:08]} Nf6 {[%emt 0:00:32]} 4. g3 {[%emt 0:00:08]} Be7 {[%emt 0:01:10]} 5. Bg2 {[%emt 0:00:07]} O-O {[%emt 0:01:53]} 6. O-O {[%emt 0:00:10]} dxc4 {[%emt 0:02:10]} 7. Qc2 {[%emt 0:00:08]} a6 {[%emt 0:01:24]} 8. a4 {[%emt 0:00:07]} Bd7 {[%emt 0:00:57]} 9. Qxc4 {[%emt 0:00:14]} Bc6 {[%emt 0:00:34]} 10. Bf4 {[%emt 0:00:12]} a5 {[%emt 0:09:27]} 11. Nc3 {[%emt 0:05:28]} Na6 {[%emt 0:04:20]} 12. Rad1 {[%emt 0:02:27] E05: Open Catalan: 5 Nf3 Be7.} Nb4 {[%emt 0:06:08]} 13. Ne5 {[%emt 0:03:10][%cal Re5c6]} Bxg2 {[%emt 0:04:08]} 14. Kxg2 {[%emt 0:00:05] The position is equal.} Nbd5 {[%emt 0:03:50]} 15. Bc1 {[%emt 0:07:09] [#]} c6 $146 {[%emt 0:29:18]} ({Predecessor:} 15... Nxc3 16. bxc3 Qd5+ 17. f3 Qxc4 18. Nxc4 c6 19. Bd2 b5 20. Ne5 Rfc8 21. Rb1 Rab8 {1-0 Delchev,A (2648)-Rudolf,A (2330) San Sebastian op 32nd 2009 (2)}) 16. Qd3 {[%emt 0:18:39]} Nxc3 {[%emt 0:09:14]} 17. bxc3 {[%emt 0:01:30]} Qd5+ {[%emt 0:00:55]} 18. f3 {[%emt 0:05:14]} c5 {[%emt 0:00:45]} (18... Nd7 $1 $11 {keeps the balance.}) 19. Qb1 {[%emt 0:08:50]} (19. Ba3 $16) 19... cxd4 $11 {[%emt 0:02:17]} 20. cxd4 {[%emt 0:00:05]} Rfd8 {[%emt 0:08:47]} (20... Rfc8 $11 {remains equal.}) 21. e4 $16 {[%emt 0:01:00]} Qd6 {[%emt 0:00:18]} 22. Qxb7 {[%emt 0:07:08] [#] Nc6 is the strong threat. White is more active.} Qb4 {[%emt 0:10:53]} (22... Rab8 $142 23. Qc6 Rbc8 24. Qxd6 Bxd6) 23. Qxb4 {[%emt 0:00:49]} axb4 {[%emt 0:00:02]} 24. Nc6 $36 {[%emt 0:05:40][%csl LRd8,LRe7][%mdl 2048] White is really pushing.} Rd7 {[%emt 0:00:07]} 25. a5 {[%emt 0:07:04]} Rc7 {[%emt 0:02:39]} 26. Nxe7+ {[%emt 0:00:21]} Rxe7 {[%emt 0:00:02]} 27. Bd2 {[%emt 0:00:18]} Rxa5 {[%emt 0:00:51]} 28. Bxb4 {[%emt 0:00:11]} Ra2+ {[%emt 0:00:04]} 29. Rf2 {[%emt 0:02:32]} Rxf2+ {[%emt 0:00:11]} 30. Kxf2 {[%emt 0:00:04][%mdl 4096] Endgame KRB-KRN} Rb7 {[%emt 0:00:06]} 31. Rc1 {[%emt 0:03:10] [#] Threatening mate with Rc8+.} g5 {[%emt 0:01:12]} (31... h5 $16 {keeps fighting.}) 32. Rc4 {[%emt 0:00:25]} (32. Rc8+ $18 Kg7 33. Bc3) 32... g4 {[%emt 0:01:06]} (32... Nd7 $16 {might work better.} 33. Rc8+ Kg7) 33. Ke3 {[%emt 0:00:17]} gxf3 {[%emt 0:00:05]} 34. Kxf3 {[%emt 0:00:03]} Ra7 {[%emt 0:00:14]} (34... Kg7 $16 {was necessary.} 35. Bc3 Kf8) 35. Bc3 {[%emt 0:13:05][%cal Od4d5]} Ra2 $2 {[%emt 0:01:12]} (35... Ra8 36. Rc7 Ne8) 36. d5 $18 {[%emt 0:00:47] White is clearly winning.} exd5 {[%emt 0:00:27]} (36... Ra3 $142 37. d6 e5) 37. exd5 {[%emt 0:03:05][%cal Be4d5,Bd5d6,Bd6d7][%mdl 32]} Ra3 {[%emt 0:00:32]} 38. d6 {[%emt 0:00:56] Threatens to win with Kg2.} Kg7 {[%emt 0:00:31]} 39. Kf4 {[%emt 0:06:43]} Kg6 {[%emt 0:00:28]} 40. Bxf6 {[%emt 0:00:09]} Kxf6 {[%emt 0:00:03] KR-KR} 41. Rd4 {[%emt 0:30:07]} Ra8 {[%emt 0:30:02]} 42. d7 {[%emt 0:00:08]} Rd8 {[%emt 0:00:02]} 43. Kg4 {[%emt 0:02:46]} Kg6 {[%emt 0:00:00]} 44. Rd6+ {[%emt 0:00:00]} f6 {[%emt 0:00:00]} 45. h4 {[%emt 0:00:00]} Kf7 {[%emt 0:00:00]} 46. Kh5 {[%emt 0:00:00]} Kg7 {[%emt 0:00:00]} 47. Rd1 {[%emt 0:00:00]} h6 {[%emt 0:00:00]} 48. Kg4 {[%emt 0:00:00] Weighted Error Value: White=0.17 (very precise) /Black=0.37} 1-0